fUSD/lending_fUSD_20240115
["ID","MTS","AMOUNT","RATE_DAILY","PERIOD"]
[311681155,1705326633333,-500.0,0.00024662,2]
[311681156,1705326633343,-159.1,0.00024704,2]
[311681157,1705326633353,-319.74021921,0.00024747,2]
[311681158,1705326633362,-277.49570885,0.00024751,2]
[311681159,1705326633371,-22314.12582372,0.0002477,2]
[311681160,1705326633381,-150.0,0.00024775,2]
[311681161,1705326633390,-920.34,0.00024824,2]
[311681162,1705326633400,-158.12,0.00024859,2]
[311681163,1705326633410,-319.74021921,0.000249,2]
[311681164,1705326633420,-3200.0,0.000249,9]
[311681165,1705326633429,-1534.87710476,0.000249,2]
[311681166,1705326633439,-143378.64284421,0.000249,2]
[311681167,1705326633468,-590.66891619,0.000249,2]
[311681168,1705326634301,201.0,0.00021443,2]
[311681169,1705326634462,201.0,0.00022086,2]
[311681198,1705326638461,-201.0,0.00022728,3]
[311681200,1705326638470,-161.0,0.00022766,2]
[311681202,1705326638479,-138.0,0.00023371,4]
[311681211,1705326638551,-63.0,0.00023371,4]
[311681213,1705326638560,-201.0,0.00024013,5]
[311681215,1705326638568,-490.18871774,0.00024595,2]
[311681217,1705326638577,-201.0,0.00024656,6]
[311681219,1705326638586,-1952.7582396,0.000249,2]
[311681221,1705326638595,-80194.57,0.000249,2]
[311681223,1705326638604,-175.74926154,0.00024914,2]
[311681225,1705326638613,-600.74144138,0.0002499,2]
[311681226,1705326638622,-533.63137989,0.00025,2]
[311681228,1705326638631,-155.5721474,0.00025,2]
[311681231,1705326638640,-508.43471138,0.00025,2]
[311681232,1705326638649,-200.0,0.00025,2]
[311681235,1705326638658,-322.64701639,0.00025,2]
[311681236,1705326638668,-1000.0,0.00025,2]
[311681238,1705326638677,-630.56759467,0.00025,2]
[311681239,1705326638687,-374.60559964,0.00025,2]
[311681240,1705326638696,-303.27668532,0.00025,2]
[311681241,1705326638706,-201.90785395,0.00025,2]
[311681242,1705326638716,-693.44896214,0.00025,2]
[311681243,1705326638725,-167.26875195,0.00025,2]
[311681244,1705326638735,-1070.18909292,0.00025,2]
[311681245,1705326638745,-1583.17165262,0.00025,2]
[311681247,1705326638754,-505444.87458687,0.00025,2]
[311681249,1705326638764,-1248.05948298,0.00025,2]
[311681251,1705326638774,-1350.0,0.00025,3]
[311681253,1705326638784,-277.49570885,0.00025006,2]
[311681255,1705326638793,-41382.0,0.00025014,2]
[311681257,1705326638802,-20151.0,0.00025014,2]
[311681259,1705326638812,-167.0,0.00025099,2]
[311681261,1705326638821,-500.0,0.00025203,2]
[311681263,1705326638831,-277.49570885,0.00025261,2]
[311681265,1705326638840,-201.0,0.00025299,7]
[311681267,1705326638849,-158.12,0.00025357,2]
[311681269,1705326638858,-21484.56951534,0.00025427,3]
[311681271,1705326638867,-2877.72986224,0.00025427,3]
[311681273,1705326638876,-153.26343187,0.00025427,3]
[311681275,1705326638887,-225.23925925,0.00025427,3]
[311681277,1705326638898,-1415.69935564,0.00025427,3]
[311681279,1705326638907,-614.3173228,0.00025427,3]
[311681281,1705326638916,-159.1,0.00025512,2]
[311681283,1705326638925,-277.49570885,0.00025516,2]
[311681285,1705326638935,-22314.12582372,0.00025661,2]
[311681287,1705326638944,-225.942,0.00025689,2]
[311681289,1705326638953,-1376.676,0.00025689,2]
[311681291,1705326638962,-506.771,0.00025689,2]
[311681293,1705326638971,-835.0,0.00025689,2]
[311681295,1705326638981,-945.0,0.00025689,2]
[311681297,1705326638990,-702.0,0.00025689,2]
[311681298,1705326638999,-326.442,0.00025689,2]
[311681300,1705326639008,-1234.0,0.00025689,2]
[311681303,1705326639019,-527.0,0.00025689,2]
[311681304,1705326639029,-1253.0,0.00025689,2]
[311681307,1705326639040,-593.0,0.00025689,2]
[311681309,1705326639050,-1932.0,0.00025689,2]
[311681311,1705326639059,-996.0,0.00025689,2]
[311681313,1705326639068,-554.706,0.00025689,2]
[311681315,1705326639078,-911.574,0.00025689,2]
[311681317,1705326639087,-235.0,0.00025689,2]
[311681318,1705326639096,-319.0,0.00025689,2]
[311681321,1705326639105,-2272.0,0.00025689,2]
[311681323,1705326639114,-2237.344,0.00025689,2]
[311681325,1705326639124,-2067.426,0.00025689,2]
[311681327,1705326639133,-250.0,0.00025689,2]
[311681329,1705326639142,-2903.0,0.00025689,2]
[311681331,1705326639151,-1960.256,0.00025689,2]
[311681332,1705326639160,-157.083,0.00025689,2]
[311681335,1705326639169,-153.255,0.00025689,2]
[311681336,1705326639179,-150.0,0.00025689,2]
[311681338,1705326639189,-19692.0,0.00025689,2]
[311681340,1705326639198,-1347.289,0.00025689,2]
[311681342,1705326639207,-2112.227,0.00025689,2]
[311681345,1705326639216,-150.258,0.00025689,2]
[311681346,1705326639226,-162.678,0.00025689,2]
[311681348,1705326639235,-150.0,0.00025689,2]
[311681350,1705326639244,-259.65,0.00025689,2]
[311681353,1705326639253,-150.0,0.00025689,2]
[311681354,1705326639262,-200.113,0.00025689,2]
[311681356,1705326639271,-1029.0,0.00025689,2]
[311681358,1705326639281,-150.0,0.00025689,2]
[311681360,1705326639290,-289.862,0.00025689,2]
[311681363,1705326639300,-500.0,0.00025743,2]
[311681365,1705326639309,-277.49570885,0.00025771,2]
[311681367,1705326639318,-920.34,0.00025802,2]
[311681369,1705326639327,-158.12,0.00025856,2]
[311681370,1705326639336,-6400.0,0.000259,9]
[311681372,1705326639345,-167.0,0.00025901,2]
[311681374,1705326639355,-201.0,0.00025941,8]
[311681376,1705326639364,-5000.0,0.00026,2]
[311681378,1705326639373,-250.0,0.00026,2]
[311681380,1705326639382,-230.08829952,0.00026,2]
[311681382,1705326639392,-277.49570885,0.00026026,2]
[311681384,1705326639402,-1534.87710472,0.00026041,2]
[311681386,1705326639411,-1046.78345911,0.00026055,2]
[311681388,1705326639420,-150.0,0.00026079,2]
[311681389,1705326639431,-484.0,0.00026162,2]
[311681391,1705326639441,-366.98757898,0.00026274,2]
[311681393,1705326639450,-277.49570885,0.00026281,2]
[311681394,1705326639460,-500.0,0.00026283,2]
[311681396,1705326639469,-161.16,0.00026346,2]
[311681398,1705326639478,-158.12,0.00026355,2]
[311681400,1705326639489,-277.49570885,0.00026536,2]
[311681401,1705326639498,-22314.12582372,0.00026552,2]
[311681403,1705326639508,-8842.9,0.00026575,2]
[311681405,1705326639517,-154.11,0.00026575,2]
[311681406,1705326639527,-170.13,0.00026584,2]
[311681408,1705326639536,-201.0,0.00026584,9]
[311681410,1705326639545,-401.98,0.00026589,2]
[311681411,1705326639555,-155.0,0.00026701,2]
[311681413,1705326639564,-167.0,0.00026703,2]
[311681415,1705326639573,-1814.5567351,0.00026709,28]
[311681416,1705326639582,-920.34,0.00026781,2]
[311681418,1705326639592,-277.49570885,0.00026791,2]
[311681420,1705326639601,-710.05,0.00026818,2]
[311681421,1705326639610,-11128.09792183,0.00026818,10]
[311681423,1705326639619,-500.0,0.00026824,2]
[311681425,1705326639628,-158.12,0.00026853,2]
[311681427,1705326639637,-1604.6010116,0.00026908,2]
[311681428,1705326639647,-415.86531502,0.00027,2]
[311681430,1705326639656,-155.0,0.00027,2]
[311681432,1705326639666,-129289.95553674,0.00027,2]
[311681433,1705326639675,-1400.0,0.00027,3]
[311681435,1705326639685,-277.49570885,0.00027046,2]
[311681437,1705326639695,-150.0,0.0002709,2]
[311681439,1705326639704,-293.86453288,0.0002709,2]
[311681440,1705326639713,-1534.87710472,0.00027182,2]
[311681442,1705326639722,-201.0,0.00027227,10]
[311681444,1705326639731,-244.13617964,0.00027251,2]
[311681445,1705326639740,-277.49570885,0.00027301,2]
[311681447,1705326639749,-158.12,0.00027352,2]
[311681449,1705326639758,-500.0,0.00027364,2]
[311681450,1705326639767,-678.41,0.00027383,2]
[311681452,1705326639776,-200.0,0.00027397,5]
[311681454,1705326639785,-155.0,0.00027397,2]
[311681456,1705326639795,-250.0,0.00027397,2]
[311681457,1705326639804,-2500.0,0.00027397,4]
[311681459,1705326639813,-5692.02220698,0.000274,2]
[311681461,1705326639822,-250.0,0.000274,2]
[311681462,1705326639831,-22314.12582372,0.00027444,2]
[311681464,1705326639840,-2500.0,0.000275,2]
[311681466,1705326639849,-155.48633245,0.000275,4]
[311681468,1705326639858,-167.0,0.00027505,2]
[311681470,1705326639867,-277.49570885,0.00027556,2]
[311681471,1705326639876,-150.779,0.00027583,2]
[311681473,1705326639884,-920.34,0.00027759,2]
[311681475,1705326639897,-277.49570885,0.00027811,2]
[311681477,1705326639906,-158.12,0.00027851,2]
[311681479,1705326639915,-201.0,0.00027869,11]
[311681480,1705326639924,-500.0,0.00027905,2]
[311681482,1705326639936,-151.0,0.00027932,30]
[311681484,1705326639946,-200.0,0.00027945,5]
[311681486,1705326639956,-688.35613867,0.00028,2]
[311681488,1705326639965,-202.92894676,0.00028,2]
[311681489,1705326639975,-872.74900177,0.00028,2]
[311681491,1705326639985,-872.74900177,0.00028,2]
[311681493,1705326639995,-872.74900177,0.00028,2]
[311681495,1705326640004,-872.74900177,0.00028,2]
[311681497,1705326640014,-872.74900177,0.00028,2]
[311681498,1705326640023,-3000.0,0.00028,2]
[311681500,1705326640033,-200.0,0.00028,2]
[311681502,1705326640042,-1500.0,0.00028,2]
[311681504,1705326640052,-3000.0,0.0002801,2]
[311681506,1705326640062,-3000.0,0.0002802,2]
[311681507,1705326640071,-1000.0,0.00028027,2]
[311681509,1705326640081,-3000.0,0.0002803,2]
[311681511,1705326640090,-151.0,0.0002804,7]
[311681513,1705326640099,-192.946981,0.0002804,7]
[311681514,1705326640109,-151.0,0.0002804,7]
[311681516,1705326640119,-3000.0,0.0002804,2]
[311681518,1705326640128,-3000.0,0.0002805,2]
[311681520,1705326640137,-151.0,0.0002806,7]
[311681522,1705326640148,-151.0,0.0002806,7]
[311681523,1705326640157,-169.580565,0.0002806,7]
[311681525,1705326640167,-169.580565,0.0002806,7]
[311681527,1705326640176,-3000.0,0.0002806,2]
[311681530,1705326640187,-277.49570885,0.00028066,2]
[311681532,1705326640197,-3000.0,0.0002807,2]
[311681533,1705326640207,-151.0,0.0002807,7]
[311681535,1705326640216,-151.0,0.0002807,7]
[311681537,1705326640225,-151.0,0.0002807,7]
[311681539,1705326640234,-151.0,0.0002807,7]
[311681541,1705326640244,-151.0,0.0002807,7]
[311681543,1705326640253,-156.292169,0.0002807,7]
[311681544,1705326640262,-151.0,0.0002807,7]
[311681546,1705326640271,-151.0,0.0002807,7]
[311681548,1705326640280,-153.1525,0.0002807,7]
[311681549,1705326640290,-3000.0,0.0002808,2]
[311681550,1705326640299,-438.28,0.00028082,2]
[311681567,1705326640525,-3000.0,0.0002809,2]
[311681569,1705326640536,-3000.0,0.000281,2]
[311681571,1705326640545,-3000.0,0.0002811,2]
[311681573,1705326640555,-496.90335283,0.00028115,15]
[311681575,1705326640564,-496.90335283,0.00028115,15]
[311681577,1705326640573,-496.90335283,0.00028115,15]
[311681579,1705326640582,-496.90335283,0.00028115,15]
[311681581,1705326640591,-496.90335283,0.00028115,15]
[311681583,1705326640601,-496.90335283,0.00028115,15]
[311681585,1705326640610,-496.90335283,0.00028115,15]
[311681587,1705326640619,-496.90335283,0.00028115,15]
[311681589,1705326640628,-496.90335283,0.00028115,15]
[311681591,1705326640637,-496.90335283,0.00028115,15]
[311681593,1705326640646,-264.77290641,0.00028117,2]
[311681595,1705326640655,-211.2024324,0.00028118,2]
[311681597,1705326640664,-151.0,0.0002812,7]
[311681599,1705326640674,-151.0,0.0002812,7]
[311681601,1705326640684,-151.0,0.0002812,7]
[311681603,1705326640693,-151.0,0.0002812,7]
[311681605,1705326640703,-151.0,0.0002812,7]
[311681607,1705326640712,-151.0,0.0002812,7]
[311681609,1705326640721,-151.0,0.0002812,7]
[311681611,1705326640730,-151.0,0.0002812,7]
[311681613,1705326640739,-3000.0,0.0002812,2]
[311681615,1705326640749,-496.90335285,0.00028129,15]
[311681617,1705326640758,-5207.797317,0.0002813,2]
[311681619,1705326640767,-167.0,0.00028307,2]
[311681621,1705326640776,-167.0,0.00028307,2]
[311681623,1705326640786,-277.49570885,0.00028321,2]
[311681625,1705326640795,-1534.87710472,0.00028323,2]
[311681627,1705326640804,-22314.12582372,0.00028335,2]
[311681629,1705326640813,-158.12,0.0002835,2]
[311681630,1705326640822,-7999.99,0.00028425,6]
[311681632,1705326640831,-484.0,0.00028426,2]
[311681633,1705326640840,-500.0,0.00028445,2]
[311681634,1705326640850,-80150.41759764,0.00028448,2]
[311681635,1705326640859,-300.0,0.0002845,2]
[311681636,1705326640868,-1000.0,0.00028451,2]
[311681637,1705326640877,-151.0,0.00028451,7]
[311681638,1705326640886,-151.0,0.00028451,7]
[311681639,1705326640896,-151.0,0.00028451,7]
[311681640,1705326640909,-242.058528,0.00028451,7]
[311681641,1705326640918,-242.058528,0.00028451,7]
[311681642,1705326640927,-151.0,0.00028451,7]
[311681643,1705326640938,-151.0,0.00028451,7]
[311681644,1705326640947,-151.0,0.00028451,7]
[311681645,1705326640956,-151.0,0.00028451,7]
[311681646,1705326640966,-151.0,0.00028451,7]
[311681647,1705326640975,-151.0,0.00028451,7]
[311681648,1705326640984,-151.0,0.00028451,7]
[311681649,1705326640993,-151.0,0.00028451,7]
[311681650,1705326641002,-151.0,0.00028451,7]
[311681651,1705326641012,-151.0,0.00028451,7]
[311681652,1705326641021,-151.0,0.00028451,7]
[311681653,1705326641031,-151.0,0.00028451,7]
[311681654,1705326641040,-151.0,0.00028451,7]
[311681655,1705326641050,-169.580565,0.00028451,7]
[311681656,1705326641059,-169.580565,0.00028451,7]
[311681657,1705326641068,-151.0,0.00028451,7]
[311681658,1705326641078,-151.0,0.00028451,7]
[311681659,1705326641087,-151.0,0.00028451,7]
[311681660,1705326641096,-151.0,0.00028451,7]
[311681661,1705326641106,-151.0,0.00028451,7]
[311681662,1705326641115,-151.0,0.00028451,7]
[311681663,1705326641124,-151.0,0.00028451,7]
[311681664,1705326641134,-151.0,0.00028451,7]
[311681665,1705326641144,-1831.20152832,0.00028476,2]
[311681666,1705326641155,-198.58536634,0.00028476,2]
[311681667,1705326641167,-1867.68506605,0.00028476,2]
[311681668,1705326641176,-824.99874504,0.00028476,2]
[311681669,1705326641188,-200.0,0.00028493,5]
[311681670,1705326641197,-12291.59823019,0.000285,2]
[311681671,1705326641207,-1500.0,0.000285,2]
[311681672,1705326641218,-151.0,0.00028502,7]
[311681673,1705326641228,-201.0,0.00028512,12]
[311681674,1705326641237,-600.74144138,0.00028541,2]
[311681675,1705326641247,-219.24512257,0.00028549,2]
[311681676,1705326641256,-155.0,0.00028549,2]
[311681677,1705326641265,-500.0,0.0002855,30]
[311681678,1705326641274,-168.92999387,0.0002855,2]
[311681679,1705326641284,-151.0,0.00028551,7]
[311681680,1705326641294,-151.0,0.00028551,7]
[311681681,1705326641303,-151.0,0.00028551,7]
[311681682,1705326641313,-151.0,0.00028551,7]
[311681683,1705326641323,-151.0,0.00028551,7]
[311681684,1705326641332,-151.0,0.00028551,7]
[311681685,1705326641341,-151.0,0.00028551,7]
[311681686,1705326641351,-151.0,0.00028551,7]
[311681687,1705326641360,-151.0,0.00028551,7]
[311681688,1705326641370,-151.0,0.00028551,7]
[311681689,1705326641379,-152.119365,0.00028551,7]
[311681690,1705326641389,-151.0,0.00028551,7]
[311681691,1705326641398,-898.025245,0.00028551,7]
[311681692,1705326641408,-898.025245,0.00028551,7]
[311681693,1705326641417,-151.0,0.00028551,7]
[311681694,1705326641427,-990.0,0.00028551,7]
[311681695,1705326641437,-990.0,0.00028551,7]
[311681696,1705326641446,-990.0,0.00028551,7]
[311681697,1705326641456,-990.0,0.00028551,7]
[311681698,1705326641465,-990.0,0.00028551,7]
[311681699,1705326641475,-990.0,0.00028551,7]
[311681700,1705326641484,-990.0,0.00028551,7]
[311681701,1705326641493,-990.0,0.00028551,7]
[311681702,1705326641502,-990.0,0.00028551,7]
[311681703,1705326641511,-990.0,0.00028551,7]
[311681704,1705326641520,-990.0,0.00028551,7]
[311681705,1705326641529,-990.0,0.00028551,7]
[311681706,1705326641538,-990.0,0.00028551,7]
[311681707,1705326641547,-990.0,0.00028551,7]
[311681708,1705326641557,-990.0,0.00028551,7]
[311681709,1705326641566,-990.0,0.00028551,7]
[311681710,1705326641574,-990.0,0.00028551,7]
[311681711,1705326641583,-990.0,0.00028551,7]
[311681712,1705326641593,-990.0,0.00028551,7]
[311681713,1705326641602,-990.0,0.00028551,7]
[311681714,1705326641611,-990.0,0.00028551,7]
[311681715,1705326641620,-990.0,0.00028551,7]
[311681716,1705326641629,-990.0,0.00028551,7]
[311681717,1705326641638,-990.0,0.00028551,7]
[311681718,1705326641648,-990.0,0.00028551,7]
[311681719,1705326641657,-990.0,0.00028551,7]
[311681720,1705326641666,-990.0,0.00028551,7]
[311681721,1705326641675,-990.0,0.00028551,7]
[311681722,1705326641685,-990.0,0.00028551,7]
[311681723,1705326641694,-990.0,0.00028551,7]
[311681724,1705326641702,-990.0,0.00028551,7]
[311681725,1705326641711,-990.0,0.00028551,7]
[311681726,1705326641720,-990.0,0.00028551,7]
[311681727,1705326641729,-990.0,0.00028551,7]
[311681728,1705326641738,-990.0,0.00028551,7]
[311681729,1705326641747,-990.0,0.00028551,7]
[311681730,1705326641756,-990.0,0.00028551,7]
[311681731,1705326641766,-990.0,0.00028551,7]
[311681732,1705326641775,-990.0,0.00028551,7]
[311681733,1705326641784,-990.0,0.00028551,7]
[311681734,1705326641793,-990.0,0.00028551,7]
[311681735,1705326641803,-990.0,0.00028551,7]
[311681736,1705326641812,-990.0,0.00028551,7]
[311681737,1705326641822,-990.0,0.00028551,7]
[311681738,1705326641831,-990.0,0.00028551,7]
[311681739,1705326641840,-990.0,0.00028551,7]
[311681740,1705326641849,-990.0,0.00028551,7]
[311681741,1705326641858,-990.0,0.00028551,7]
[311681742,1705326641867,-990.0,0.00028551,7]
[311681743,1705326641877,-990.0,0.00028551,7]
[311681744,1705326641886,-990.0,0.00028551,7]
[311681745,1705326641899,-990.0,0.00028551,7]
[311681746,1705326641909,-861.811136,0.00028551,7]
[311681747,1705326641918,-152.077337,0.00028551,7]
[311681748,1705326641927,-152.077337,0.00028551,7]
[311681749,1705326641938,-151.0,0.00028551,7]
[311681750,1705326641947,-192.105174,0.00028551,7]
[311681751,1705326641956,-192.105174,0.00028551,7]
[311681752,1705326641965,-394.216124,0.00028551,7]
[311681753,1705326641974,-394.216124,0.00028551,7]
[311681754,1705326641984,-151.0,0.00028551,7]
[311681755,1705326641993,-204.960158,0.00028551,7]
[311681756,1705326642002,-204.960158,0.00028551,7]
[311681757,1705326642011,-233707.27326861,0.00028551,7]
[311681758,1705326642021,-277.49570885,0.00028576,2]
[311681759,1705326642030,-945.0,0.00028689,2]
[311681760,1705326642039,-835.0,0.00028689,2]
[311681761,1705326642048,-214.0,0.00028689,2]
[311681763,1705326642058,-158.598,0.00028689,2]
[311681765,1705326642067,-702.0,0.00028689,2]
[311681767,1705326642076,-1253.0,0.00028689,2]
[311681769,1705326642086,-1224.0,0.00028689,2]
[311681771,1705326642095,-496.729,0.00028689,2]
[311681773,1705326642104,-420.252,0.00028689,2]
[311681775,1705326642113,-996.0,0.00028689,2]
[311681777,1705326642123,-426.0,0.00028689,2]
[311681779,1705326642132,-878.0,0.00028689,2]
[311681781,1705326642141,-235.0,0.00028689,2]
[311681783,1705326642150,-319.0,0.00028689,2]
[311681785,1705326642159,-2272.0,0.00028689,2]
[311681787,1705326642169,-150.0,0.00028689,2]
[311681789,1705326642178,-2903.0,0.00028689,2]
[311681791,1705326642188,-150.0,0.00028689,2]
[311681793,1705326642197,-19692.0,0.00028689,2]
[311681795,1705326642206,-150.0,0.00028689,2]
[311681797,1705326642216,-150.0,0.00028689,2]
[311681799,1705326642226,-1029.0,0.00028689,2]
[311681801,1705326642236,-150.0,0.00028689,2]
[311681803,1705326642245,-920.34,0.00028738,2]
[311681805,1705326642254,-155.0,0.00028767,2]
[311681807,1705326642263,-750.0,0.000288,2]
[311681809,1705326642272,-277.49570885,0.00028831,2]
[311681811,1705326642281,-9600.0,0.000289,10]
[311681812,1705326642290,-1386.38282133,0.00028904,2]
[311681814,1705326642299,-500.0,0.00028985,2]
[311681815,1705326642308,-150.61503641,0.00029,30]
[311681816,1705326642317,-1450.0,0.00029,3]
[311681817,1705326642327,-150.56489272,0.00029,2]
[311681818,1705326642337,-1500.0,0.00029,2]
[311681819,1705326642347,-200.0,0.00029041,5]
[311681820,1705326642358,-151.0,0.00029084,4]
[311681821,1705326642369,-277.49570885,0.00029087,2]
[311681822,1705326642378,-1500.0,0.00029115,2]
[311681823,1705326642387,-256.74769349,0.00029136,2]
[311681824,1705326642396,-201.0,0.00029154,13]
[311681825,1705326642406,-22314.12582372,0.00029226,2]
[311681826,1705326642415,-150.0,0.00029233,2]
[311681827,1705326642424,-401.98,0.00029248,2]
[311681828,1705326642437,-150.0,0.00029277,2]
[311681829,1705326642447,-150.0,0.00029278,2]
[311681830,1705326642457,-150.0,0.00029285,2]
[311681831,1705326642467,-150.0,0.00029288,2]
[311681832,1705326642477,-1500.0,0.00029307,2]
[311681833,1705326642487,-1500.0,0.00029309,2]
[311681834,1705326642496,-150.0,0.00029318,2]
[311681835,1705326642506,-150.0,0.00029331,2]
[311681836,1705326642515,-277.49570885,0.00029342,2]
[311681837,1705326642525,-150.0,0.00029365,2]
[311681838,1705326642535,-150.0,0.00029367,2]
[311681839,1705326642546,-1500.0,0.00029378,2]
[311681840,1705326642556,-1500.0,0.00029389,2]
[311681841,1705326642567,-150.0,0.000294,2]
[311681842,1705326642576,-150.0,0.0002941,2]
[311681843,1705326642585,-150.0,0.00029412,2]
[311681844,1705326642594,-150.0,0.00029412,2]
[311681845,1705326642603,-150.0,0.00029424,2]
[311681846,1705326642613,-150.0,0.00029436,2]
[311681847,1705326642622,-150.0,0.00029437,2]
[311681848,1705326642631,-150.0,0.00029438,2]
[311681849,1705326642640,-150.0,0.00029438,2]
[311681850,1705326642650,-150.0,0.0002945,2]
[311681851,1705326642659,-302.68207572,0.0002946,2]
[311681852,1705326642668,-150.0,0.00029461,2]
[311681853,1705326642677,-1534.87710472,0.00029464,2]
[311681854,1705326642687,-150.0,0.00029473,2]
[311681855,1705326642696,-300.0,0.00029479,2]
[311681856,1705326642705,-150.0,0.00029481,2]
[311681857,1705326642714,-288.69862377,0.00029485,2]
[311681858,1705326642723,-150.0,0.00029493,2]
[311681859,1705326642732,-257.07759916,0.00029497,2]
[311681861,1705326642741,-188.20130404,0.000295,3]
[311681863,1705326642750,-1500.0,0.000295,2]
[311681865,1705326642759,-8144.80753827,0.000295,2]
[311681867,1705326642768,-300.0,0.00029503,2]
[311681869,1705326642777,-150.0,0.00029506,2]
[311681870,1705326642786,-150.0,0.00029515,2]
[311681873,1705326642795,-150.0,0.00029518,2]
[311681876,1705326642805,-150.0,0.00029518,2]
[311681879,1705326642814,-300.0,0.00029523,2]
[311681881,1705326642823,-500.0,0.00029526,2]
[311681883,1705326642832,-150.0,0.00029531,2]
[311681885,1705326642841,-150.0,0.00029532,2]
[311681886,1705326642850,-150.0,0.00029542,2]
[311681887,1705326642859,-150.0,0.00029544,2]
[311681888,1705326642867,-150.0,0.00029546,2]
[311681889,1705326642876,-150.0,0.00029548,2]
[311681891,1705326642885,-150.0,0.00029551,2]
[311681893,1705326642895,-600.74144138,0.00029554,2]
[311681895,1705326642908,-150.0,0.00029556,2]
[311681897,1705326642917,-150.0,0.00029562,2]
[311681899,1705326642927,-150.0,0.00029562,2]
[311681901,1705326642938,-150.0,0.00029562,2]
[311681903,1705326642947,-151.0,0.00029564,7]
[311681905,1705326642956,-151.0,0.00029564,7]
[311681907,1705326642966,-898.025245,0.00029564,7]
[311681909,1705326642975,-898.025245,0.00029564,7]
[311681911,1705326642984,-152.077337,0.00029564,7]
[311681912,1705326642993,-152.077337,0.00029564,7]
[311681915,1705326643185,-151.0,0.00029564,7]
[311681916,1705326643194,-192.105174,0.00029564,7]
[311681917,1705326643203,-192.105174,0.00029564,7]
[311681918,1705326643212,-394.216124,0.00029564,7]
[311681919,1705326643221,-394.216124,0.00029564,7]
[311681920,1705326643231,-151.0,0.00029564,7]
[311681921,1705326643240,-204.960158,0.00029564,7]
[311681922,1705326643249,-204.960158,0.00029564,7]
[311681923,1705326643259,-1027485.82927529,0.00029564,2]
[311681924,1705326643268,-200000.0,0.00029564,7]
[311681925,1705326643277,-151.0,0.00029564,7]
[311681926,1705326643287,-175.451181,0.00029564,7]
[311681927,1705326643296,-151.0,0.00029564,7]
[311681928,1705326643305,-151.0,0.00029564,7]
[311681929,1705326643315,-151.0,0.00029564,7]
[311681931,1705326643324,-151.0,0.00029564,7]
[311681933,1705326643333,-151.0,0.00029564,7]
[311681934,1705326643342,-151.0,0.00029564,7]
[311681935,1705326643352,-151.0,0.00029564,7]
[311681936,1705326643361,-151.0,0.00029564,7]
[311681937,1705326643371,-169.580565,0.00029564,7]
[311681939,1705326643380,-169.580565,0.00029564,7]
[311681941,1705326643389,-157.550512,0.00029564,7]
[311681942,1705326643398,-151.0,0.00029564,7]
[311681945,1705326643408,-151.0,0.00029564,7]
[311681947,1705326643418,-151.0,0.00029564,7]
[311681948,1705326643427,-151.0,0.00029564,7]
[311681949,1705326643437,-151.0,0.00029564,7]
[311681950,1705326643446,-196.0693,0.00029564,7]
[311681951,1705326643456,-156.232315,0.00029564,7]
[311681952,1705326643465,-150.0,0.00029566,2]
[311681953,1705326643474,-150.0,0.00029573,2]